[Event "*** Titled Tuesday Blitz"]
[Site "Chess.com"]
[Date "2020.04.21"]
[Round "4"]
[White "Kildepiotr"]
[Black "PowerThinking2650"]
[Result "1-0"]
[WhiteElo "2535"]
[BlackElo "2279"]
[TimeControl "180+1"]
[EndTime "10:41:44 PDT"]
[Termination "Kildepiotr won by resignation"]

1. Nf3 {[%clk 0:03:00.9]} 1... Nf6 {[%clk 0:02:59]} 2. g3 {[%clk 0:03:01.1]}
2... g6 {[%clk 0:02:58.9]} 3. Bg2 {[%clk 0:03:01.3]} 3... Bg7 {[%clk 0:02:59.5]}
4. O-O {[%clk 0:03:01.5]} 4... d6 {[%clk 0:02:59.8]} 5. d4 {[%clk 0:03:01.8]}
5... Nbd7 {[%clk 0:02:58]} 6. Nbd2 {[%clk 0:03:01.7]} 6... O-O {[%clk 0:02:53]}
7. e4 {[%clk 0:03:01.2]} 7... e5 {[%clk 0:02:53]} 8. dxe5 {[%clk 0:03:01.1]}
8... Nxe5 {[%clk 0:02:51.8]} 9. Nxe5 {[%clk 0:03:00.7]} 9... dxe5 {[%clk
0:02:52.1]} 10. Qe2 {[%clk 0:03:01.2]} 10... Bg4 {[%clk 0:02:48.4]} 11. f3
{[%clk 0:03:00.7]} 11... Be6 {[%clk 0:02:47.2]} 12. Rd1 {[%clk 0:02:57]} 12...
Qe7 {[%clk 0:02:39.8]} 13. Nf1 {[%clk 0:02:53.4]} 13... Rfd8 {[%clk 0:02:30.5]}
14. Be3 {[%clk 0:02:51.8]} 14... b6 {[%clk 0:02:18.8]} 15. a4 {[%clk 0:02:50.7]}
15... a5 {[%clk 0:02:17.3]} 16. b3 {[%clk 0:02:48.7]} 16... Nd7 {[%clk
0:02:12.2]} 17. Nd2 {[%clk 0:02:44.6]} 17... Bf6 {[%clk 0:01:59.9]} 18. Nc4
{[%clk 0:02:37.3]} 18... Bg5 {[%clk 0:01:58.1]} 19. Bf2 {[%clk 0:02:37.5]} 19...
f6 {[%clk 0:01:45.6]} 20. Bf1 {[%clk 0:02:35.4]} 20... Nc5 {[%clk 0:01:41.1]}
21. Qe1 {[%clk 0:02:30.7]} 21... Bf7 {[%clk 0:01:25.8]} 22. Rxd8+ {[%clk
0:02:24.1]} 22... Rxd8 {[%clk 0:01:24.9]} 23. Rd1 {[%clk 0:02:25]} 23... Rxd1
{[%clk 0:01:24]} 24. Qxd1 {[%clk 0:02:25.6]} 24... Ne6 {[%clk 0:01:21.5]} 25.
Nb2 {[%clk 0:02:14.1]} 25... h5 {[%clk 0:01:16.3]} 26. Bc4 {[%clk 0:02:13]}
26... h4 {[%clk 0:01:11.6]} 27. Qd3 {[%clk 0:02:07.5]} 27... hxg3 {[%clk
0:01:11]} 28. hxg3 {[%clk 0:02:07.5]} 28... Nc5 {[%clk 0:01:05.2]} 29. Bxf7+
{[%clk 0:02:06.6]} 29... Kxf7 {[%clk 0:01:04.1]} 30. Qd5+ {[%clk 0:02:04.5]}
30... Ne6 {[%clk 0:00:47.7]} 31. Nd3 {[%clk 0:01:53.6]} 31... Qd8 {[%clk
0:00:45.2]} 32. Kf1 {[%clk 0:01:46.7]} 32... Qxd5 {[%clk 0:00:38.3]} 33. exd5
{[%clk 0:01:47.6]} 33... Nf8 {[%clk 0:00:38.4]} 34. d6 {[%clk 0:01:46.8]} 34...
c5 {[%clk 0:00:34]} 35. Nb2 {[%clk 0:01:23.3]} 35... Nd7 {[%clk 0:00:29.5]} 36.
Nc4 {[%clk 0:01:21.7]} 36... Ke6 {[%clk 0:00:28.8]} 37. Ke2 {[%clk 0:01:18.6]}
37... f5 {[%clk 0:00:26.5]} 38. c3 {[%clk 0:01:15.9]} 38... Kd5 {[%clk
0:00:20.5]} 39. Be1 {[%clk 0:00:59.5]} 39... e4 {[%clk 0:00:20.3]} 40. f4 {[%clk
0:00:59.4]} 40... Bf6 {[%clk 0:00:20.1]} 41. g4 {[%clk 0:00:49.8]} 41... Bg7
{[%clk 0:00:19.6]} 42. gxf5 {[%clk 0:00:48.7]} 42... gxf5 {[%clk 0:00:19.6]} 43.
Ne3+ {[%clk 0:00:45.9]} 43... Ke6 {[%clk 0:00:19]} 44. Bh4 {[%clk 0:00:39.7]}
44... Bf8 {[%clk 0:00:18.2]} 45. Be7 {[%clk 0:00:38.3]} 45... Bg7 {[%clk
0:00:16]} 46. Kd2 {[%clk 0:00:32.6]} 46... Bh6 {[%clk 0:00:16]} 47. Ng2 {[%clk
0:00:29.5]} 47... Kd5 {[%clk 0:00:15]} 48. Ne3+ {[%clk 0:00:27.5]} 48... Ke6
{[%clk 0:00:15.1]} 49. Ng2 {[%clk 0:00:27.7]} 49... Kd5 {[%clk 0:00:15.3]} 50.
c4+ {[%clk 0:00:27.5]} 50... Ke6 {[%clk 0:00:15.3]} 51. Ke3 {[%clk 0:00:26.7]}
51... Bg7 {[%clk 0:00:14.6]} 52. Nh4 {[%clk 0:00:26.7]} 52... Bd4+ {[%clk
0:00:11.6]} 53. Ke2 {[%clk 0:00:26.5]} 53... Nb8 {[%clk 0:00:09.5]} 54. Ng6
{[%clk 0:00:25.2]} 54... Nd7 {[%clk 0:00:08.1]} 55. Nh4 {[%clk 0:00:24.5]} 55...
Bf6 {[%clk 0:00:06.6]} 56. Ng2 {[%clk 0:00:23.4]} 56... Bxe7 {[%clk 0:00:06.2]}
57. dxe7 {[%clk 0:00:23.3]} 57... Kxe7 {[%clk 0:00:06.6]} 58. Ne3 {[%clk
0:00:23.8]} 58... Ke6 {[%clk 0:00:07.1]} 59. Kf2 {[%clk 0:00:24.1]} 59... Nf6
{[%clk 0:00:07]} 60. Kg3 {[%clk 0:00:23.6]} 60... Ne8 {[%clk 0:00:04.7]} 61. Kh4
{[%clk 0:00:23.5]} 61... Nc7 {[%clk 0:00:04.5]} 62. Kg5 {[%clk 0:00:23.1]} 62...
Ne8 {[%clk 0:00:04.2]} 63. Nxf5 {[%clk 0:00:22.6]} 63... Nd6 {[%clk 0:00:04.6]}
64. Ne3 {[%clk 0:00:21.7]} 64... Kf7 {[%clk 0:00:03.7]} 65. f5 {[%clk
0:00:21.2]} 65... Ne8 {[%clk 0:00:03.6]} 66. Kf4 {[%clk 0:00:20.9]} 66... Nf6
{[%clk 0:00:03.7]} 67. Nd5 {[%clk 0:00:19.1]} 67... Nxd5+ {[%clk 0:00:03.7]} 68.
cxd5 {[%clk 0:00:18.5]} 68... b5 {[%clk 0:00:03.4]} 69. Kxe4 {[%clk 0:00:16.9]}
69... c4 {[%clk 0:00:03.1]} 70. axb5 {[%clk 0:00:14.5]} 70... cxb3 {[%clk
0:00:03]} 71. Kd3 {[%clk 0:00:14.5]} 71... a4 {[%clk 0:00:02.4]} 72. Kc3 {[%clk
0:00:14.3]} 72... Ke7 {[%clk 0:00:01.7]} 73. b6 {[%clk 0:00:13.7]} 73... Kd6
{[%clk 0:00:02.3]} 74. f6 {[%clk 0:00:13.8]} 74... Kxd5 {[%clk 0:00:02.4]} 75.
f7 {[%clk 0:00:13.9]} 1-0

[Event "*** Titled Tuesday Blitz"]
[Site "Chess.com"]
[Date "2020.04.21"]
[Round "4"]
[White "amintabatabaei"]
[Black "vanea_03"]
[Result "1/2-1/2"]
[WhiteElo "2824"]
[BlackElo "2654"]
[TimeControl "180+1"]
[EndTime "10:41:45 PDT"]
[Termination "Game drawn by repetition"]

1. e4 {[%clk 0:03:00.9]} 1... e5 {[%clk 0:03:00.3]} 2. Nf3 {[%clk 0:03:00]} 2...
Nc6 {[%clk 0:03:00.7]} 3. Bb5 {[%clk 0:03:00]} 3... a6 {[%clk 0:03:00.7]} 4. Ba4
{[%clk 0:02:59.5]} 4... Nf6 {[%clk 0:03:01.2]} 5. O-O {[%clk 0:02:59.1]} 5...
Bc5 {[%clk 0:03:01.7]} 6. c3 {[%clk 0:02:58.5]} 6... b5 {[%clk 0:03:01.9]} 7.
Bb3 {[%clk 0:02:57.7]} 7... d6 {[%clk 0:03:02.2]} 8. a4 {[%clk 0:02:57.6]} 8...
Rb8 {[%clk 0:03:01.8]} 9. d4 {[%clk 0:02:57.7]} 9... Bb6 {[%clk 0:03:01.7]} 10.
a5 {[%clk 0:02:57.9]} 10... Ba7 {[%clk 0:03:02.1]} 11. h3 {[%clk 0:02:56.4]}
11... O-O {[%clk 0:03:02]} 12. Be3 {[%clk 0:02:56.4]} 12... exd4 {[%clk
0:03:02.4]} 13. cxd4 {[%clk 0:02:55.8]} 13... Nb4 {[%clk 0:03:03]} 14. Re1
{[%clk 0:02:39.1]} 14... Bb7 {[%clk 0:02:59]} 15. d5 {[%clk 0:02:28.1]} 15...
Bxe3 {[%clk 0:02:56]} 16. Rxe3 {[%clk 0:02:29]} 16... c5 {[%clk 0:02:40.4]} 17.
Nc3 {[%clk 0:02:05.5]} 17... Re8 {[%clk 0:02:32.4]} 18. Qd2 {[%clk 0:02:04.8]}
18... Nd7 {[%clk 0:02:18.1]} 19. Bc2 {[%clk 0:01:37.1]} 19... Nxc2 {[%clk
0:01:50.9]} 20. Qxc2 {[%clk 0:01:38]} 20... Bc8 {[%clk 0:01:38.8]} 21. Ne2
{[%clk 0:01:19.3]} 21... Qf6 {[%clk 0:01:22.5]} 22. Re1 {[%clk 0:01:09.5]} 22...
b4 {[%clk 0:01:04.7]} 23. Nc1 {[%clk 0:01:07.3]} 23... Ne5 {[%clk 0:00:58.4]}
24. Nxe5 {[%clk 0:01:06.4]} 24... Qxe5 {[%clk 0:00:59.3]} 25. Nd3 {[%clk
0:01:06.1]} 25... Qd4 {[%clk 0:00:59.5]} 26. Rd1 {[%clk 0:00:40.9]} 26... Bd7
{[%clk 0:00:50.5]} 27. b3 {[%clk 0:00:38.6]} 27... Bb5 {[%clk 0:00:35.7]} 28.
Nb2 {[%clk 0:00:32.1]} 28... Qe5 {[%clk 0:00:29.7]} 29. Nc4 {[%clk 0:00:31.3]}
29... Bxc4 {[%clk 0:00:30.3]} 30. Qxc4 {[%clk 0:00:32.2]} 30... Rb5 {[%clk
0:00:30.6]} 31. g3 {[%clk 0:00:22.9]} 31... Rxa5 {[%clk 0:00:21.5]} 32. f4
{[%clk 0:00:22.9]} 32... Qb2 {[%clk 0:00:22.2]} 33. Re2 {[%clk 0:00:16.8]} 33...
Qc3 {[%clk 0:00:22.6]} 34. Qxc3 {[%clk 0:00:17.2]} 34... bxc3 {[%clk 0:00:23.5]}
35. Rc1 {[%clk 0:00:18.1]} 35... Rb5 {[%clk 0:00:14.4]} 36. Rxc3 {[%clk
0:00:18.2]} 36... f6 {[%clk 0:00:15.1]} 37. Ree3 {[%clk 0:00:14.5]} 37... Rb4
{[%clk 0:00:14]} 38. Rc4 {[%clk 0:00:13.3]} 38... a5 {[%clk 0:00:09.5]} 39. Kf2
{[%clk 0:00:12.3]} 39... Kf7 {[%clk 0:00:08.5]} 40. Kf3 {[%clk 0:00:12.1]} 40...
Reb8 {[%clk 0:00:08.5]} 41. Rxb4 {[%clk 0:00:11.8]} 41... axb4 {[%clk 0:00:07]}
42. e5 {[%clk 0:00:12.4]} 42... fxe5 {[%clk 0:00:07.3]} 43. fxe5 {[%clk
0:00:13.3]} 43... dxe5 {[%clk 0:00:07.8]} 44. Rxe5 {[%clk 0:00:13.7]} 44... Ra8
{[%clk 0:00:07.4]} 45. d6 {[%clk 0:00:13.1]} 45... Ra1 {[%clk 0:00:04.5]} 46.
Rd5 {[%clk 0:00:02.8]} 46... Ke8 {[%clk 0:00:04.1]} 47. Rxc5 {[%clk 0:00:02.6]}
47... Ra3 {[%clk 0:00:03.1]} 48. Rc7 {[%clk 0:00:02.6]} 48... Rxb3+ {[%clk
0:00:03.5]} 49. Kf4 {[%clk 0:00:03.1]} 49... g5+ {[%clk 0:00:03.7]} 50. Kg4
{[%clk 0:00:02.2]} 50... h5+ {[%clk 0:00:03.7]} 51. Kxh5 {[%clk 0:00:01.4]}
51... Rxg3 {[%clk 0:00:04.6]} 52. Kg6 {[%clk 0:00:01.7]} 52... b3 {[%clk
0:00:04.4]} 53. Rb7 {[%clk 0:00:02]} 53... Rxh3 {[%clk 0:00:03.1]} 54. Kf5
{[%clk 0:00:02.2]} 54... Rd3 {[%clk 0:00:03.5]} 55. Ke6 {[%clk 0:00:02.6]} 55...
Re3+ {[%clk 0:00:03.7]} 56. Kf5 {[%clk 0:00:03.2]} 56... Kd8 {[%clk 0:00:03.8]}
57. Kxg5 {[%clk 0:00:02.3]} 57... b2 {[%clk 0:00:03.9]} 58. Kf5 {[%clk 0:00:02]}
58... Re2 {[%clk 0:00:03.5]} 59. Kf6 {[%clk 0:00:02.5]} 59... Rf2+ {[%clk
0:00:03.7]} 60. Ke6 {[%clk 0:00:02.7]} 60... Re2+ {[%clk 0:00:04.3]} 61. Kd5
{[%clk 0:00:03.3]} 61... Rd2+ {[%clk 0:00:04.8]} 62. Kc6 {[%clk 0:00:03.7]}
62... Rc2+ {[%clk 0:00:05]} 63. Kd5 {[%clk 0:00:04.2]} 63... Rd2+ {[%clk
0:00:05.6]} 64. Kc5 {[%clk 0:00:04.9]} 64... Rc2+ {[%clk 0:00:06]} 65. Kd4
{[%clk 0:00:05.5]} 65... Rd2+ {[%clk 0:00:06.3]} 66. Ke5 {[%clk 0:00:06]} 66...
Re2+ {[%clk 0:00:06.7]} 67. Kf4 {[%clk 0:00:06.3]} 67... Rd2 {[%clk 0:00:06.7]}
68. Ke5 {[%clk 0:00:06.5]} 68... Re2+ {[%clk 0:00:07]} 69. Kd5 {[%clk
0:00:07.1]} 69... Rd2+ {[%clk 0:00:07.4]} 1/2-1/2

[Event "*** Titled Tuesday Blitz"]
[Site "Chess.com"]
[Date "2020.04.21"]
[Round "4"]
[White "donotreadit"]
[Black "EddieMarsalla"]
[Result "0-1"]
[WhiteElo "2664"]
[BlackElo "2526"]
[TimeControl "180+1"]
[EndTime "10:41:45 PDT"]
[Termination "EddieMarsalla won on time"]

1. Nf3 {[%clk 0:03:00.9]} 1... d5 {[%clk 0:02:56.5]} 2. b3 {[%clk 0:03:01.8]}
2... Bg4 {[%clk 0:02:55.7]} 3. e3 {[%clk 0:03:01.4]} 3... e6 {[%clk 0:02:54.9]}
4. Bb2 {[%clk 0:03:01]} 4... Nd7 {[%clk 0:02:54.9]} 5. h3 {[%clk 0:03:00.5]}
5... Bh5 {[%clk 0:02:53.9]} 6. c4 {[%clk 0:03:00.1]} 6... c6 {[%clk 0:02:53.6]}
7. Nc3 {[%clk 0:02:57]} 7... Ngf6 {[%clk 0:02:50.9]} 8. d4 {[%clk 0:02:53.3]}
8... Bb4 {[%clk 0:02:49.3]} 9. a3 {[%clk 0:02:48.1]} 9... Bxc3+ {[%clk
0:02:49.3]} 10. Bxc3 {[%clk 0:02:49]} 10... Ne4 {[%clk 0:02:49.9]} 11. Qc2
{[%clk 0:02:46]} 11... f5 {[%clk 0:02:48.4]} 12. Be2 {[%clk 0:02:43.3]} 12...
O-O {[%clk 0:02:44.3]} 13. O-O {[%clk 0:02:43.1]} 13... Nxc3 {[%clk 0:02:30.9]}
14. Qxc3 {[%clk 0:02:44]} 14... Nf6 {[%clk 0:02:31.1]} 15. Qc2 {[%clk
0:02:38.2]} 15... Bxf3 {[%clk 0:02:25.5]} 16. Bxf3 {[%clk 0:02:34.8]} 16... Ne4
{[%clk 0:02:25.5]} 17. b4 {[%clk 0:02:30.3]} 17... Qh4 {[%clk 0:02:23.8]} 18. a4
{[%clk 0:02:21.3]} 18... Rf6 {[%clk 0:02:23.6]} 19. Rfc1 {[%clk 0:01:19.9]}
19... Ng5 {[%clk 0:02:10.5]} 20. Qe2 {[%clk 0:01:05.4]} 20... f4 {[%clk
0:01:49.7]} 21. exf4 {[%clk 0:01:00]} 21... Qxf4 {[%clk 0:01:40.1]} 22. Bg4
{[%clk 0:00:55.5]} 22... Qxd4 {[%clk 0:01:28.9]} 23. Rd1 {[%clk 0:00:48.1]}
23... Qf4 {[%clk 0:01:27.6]} 24. b5 {[%clk 0:00:43]} 24... Raf8 {[%clk
0:01:21.7]} 25. Ra2 {[%clk 0:00:38]} 25... g6 {[%clk 0:01:21.1]} 26. bxc6 {[%clk
0:00:36.4]} 26... bxc6 {[%clk 0:01:18.4]} 27. cxd5 {[%clk 0:00:36.7]} 27... cxd5
{[%clk 0:01:19.3]} 28. Qd2 {[%clk 0:00:33]} 28... h5 {[%clk 0:01:13.7]} 29. Qxf4
{[%clk 0:00:14.6]} 29... Rxf4 {[%clk 0:01:14.6]} 30. Be2 {[%clk 0:00:15.5]}
30... Rxf2 {[%clk 0:01:14.1]} 31. Bc4 {[%clk 0:00:16]} 31... Rxa2 {[%clk
0:01:02.4]} 32. Bxa2 {[%clk 0:00:16.2]} 32... Rb8 {[%clk 0:00:58.4]} 33. Bb1
{[%clk 0:00:13.3]} 33... Kg7 {[%clk 0:00:56.2]} 34. Rc1 {[%clk 0:00:13.5]} 34...
a5 {[%clk 0:00:54.9]} 35. Bd3 {[%clk 0:00:12.9]} 35... Rb4 {[%clk 0:00:46.2]}
36. Bb5 {[%clk 0:00:10.9]} 36... e5 {[%clk 0:00:44.7]} 37. Rc6 {[%clk
0:00:10.2]} 37... e4 {[%clk 0:00:38.9]} 38. Ra6 {[%clk 0:00:09.9]} 38... d4
{[%clk 0:00:37.2]} 39. Be8 {[%clk 0:00:09.2]} 39... Kf8 {[%clk 0:00:32.4]} 40.
Bxg6 {[%clk 0:00:08.4]} 40... d3 {[%clk 0:00:31.2]} 41. Kf2 {[%clk 0:00:08.2]}
41... Rb2+ {[%clk 0:00:28.6]} 42. Ke1 {[%clk 0:00:08.1]} 42... Rxg2 {[%clk
0:00:26.4]} 43. Bxh5 {[%clk 0:00:06.4]} 43... e3 {[%clk 0:00:21.9]} 44. Rf6+
{[%clk 0:00:03]} 44... Ke7 {[%clk 0:00:20.2]} 45. Rf5 {[%clk 0:00:03.2]} 45...
Ke6 {[%clk 0:00:10.7]} 46. Rf1 {[%clk 0:00:01.7]} 46... Ne4 {[%clk 0:00:07.8]}
47. Bg4+ {[%clk 0:00:01.3]} 47... Ke5 {[%clk 0:00:07.7]} 48. Bf3 {[%clk
0:00:02]} 48... Rf2 {[%clk 0:00:05.6]} 49. Rxf2 {[%clk 0:00:02]} 49... Nxf2
{[%clk 0:00:06.5]} 50. Kf1 {[%clk 0:00:02]} 50... Kf4 {[%clk 0:00:06.7]} 51. Bh5
{[%clk 0:00:02.7]} 51... Nxh3 {[%clk 0:00:07.1]} 52. Bg6 {[%clk 0:00:01.7]}
52... e2+ {[%clk 0:00:06.9]} 53. Ke1 {[%clk 0:00:01.4]} 53... Ke3 {[%clk
0:00:07.8]} 54. Bxd3 {[%clk 0:00:00.9]} 54... Nf4 {[%clk 0:00:08.4]} 0-1

[Event "*** Titled Tuesday Blitz"]
[Site "Chess.com"]
[Date "2020.04.21"]
[Round "4"]
[White "Shield12"]
[Black "rpragchess"]
[Result "1/2-1/2"]
[WhiteElo "2920"]
[BlackElo "2759"]
[TimeControl "180+1"]
[EndTime "10:41:49 PDT"]
[Termination "Game drawn by repetition"]

1. e4 {[%clk 0:03:00.9]} 1... c5 {[%clk 0:02:58.5]} 2. Nf3 {[%clk 0:03:00.9]}
2... e6 {[%clk 0:02:58.6]} 3. d4 {[%clk 0:02:59.5]} 3... cxd4 {[%clk 0:02:59.5]}
4. Nxd4 {[%clk 0:03:00.4]} 4... a6 {[%clk 0:02:59.5]} 5. c4 {[%clk 0:03:00.5]}
5... Nf6 {[%clk 0:02:59.2]} 6. Nc3 {[%clk 0:03:01]} 6... Qc7 {[%clk 0:02:59.6]}
7. a3 {[%clk 0:03:00.2]} 7... b6 {[%clk 0:02:59.7]} 8. Be3 {[%clk 0:02:59.9]}
8... Bb7 {[%clk 0:03:00]} 9. f3 {[%clk 0:03:00.3]} 9... d6 {[%clk 0:02:54.2]}
10. Be2 {[%clk 0:03:00.4]} 10... Nbd7 {[%clk 0:02:54.6]} 11. O-O {[%clk
0:03:00.9]} 11... Be7 {[%clk 0:02:55.3]} 12. Qd2 {[%clk 0:03:01.2]} 12... O-O
{[%clk 0:02:55.9]} 13. Rfc1 {[%clk 0:03:01.4]} 13... Rac8 {[%clk 0:02:54]} 14.
a4 {[%clk 0:03:00.9]} 14... a5 {[%clk 0:02:54.1]} 15. Ndb5 {[%clk 0:02:59.4]}
15... Qb8 {[%clk 0:02:54.3]} 16. Rd1 {[%clk 0:02:59.7]} 16... Rc6 {[%clk
0:02:53]} 17. Nd4 {[%clk 0:02:59.7]} 17... Rcc8 {[%clk 0:02:53.2]} 18. Ndb5
{[%clk 0:03:00]} 18... Rc6 {[%clk 0:02:53.4]} 19. Bf4 {[%clk 0:03:00]} 19... Ne5
{[%clk 0:02:53.2]} 20. b3 {[%clk 0:02:52]} 20... Rd8 {[%clk 0:02:50.4]} 21. Bf1
{[%clk 0:02:47.1]} 21... Nfd7 {[%clk 0:02:47.8]} 22. Bd3 {[%clk 0:02:41.8]}
22... Ng6 {[%clk 0:02:12.3]} 23. Bg3 {[%clk 0:02:38.5]} 23... h5 {[%clk
0:02:12.4]} 24. h3 {[%clk 0:02:20]} 24... h4 {[%clk 0:01:26.8]} 25. Bh2 {[%clk
0:02:19.2]} 25... Bf6 {[%clk 0:01:11.4]} 26. Bc2 {[%clk 0:02:13.5]} 26... Be5
{[%clk 0:01:10]} 27. f4 {[%clk 0:02:13.7]} 27... Bf6 {[%clk 0:01:09.4]} 28. Qe3
{[%clk 0:01:45]} 28... Nc5 {[%clk 0:01:03.1]} 29. Rd2 {[%clk 0:01:43.1]} 29...
Rcc8 {[%clk 0:00:21.7]} 30. Rad1 {[%clk 0:01:40.8]} 30... Be7 {[%clk 0:00:22]}
31. Nd4 {[%clk 0:01:11.4]} 31... Qa8 {[%clk 0:00:17.5]} 32. Nf3 {[%clk
0:01:03.5]} 32... Bf6 {[%clk 0:00:17.7]} 33. Rxd6 {[%clk 0:01:00.9]} 33... Rxd6
{[%clk 0:00:17.5]} 34. Rxd6 {[%clk 0:01:01.8]} 34... Bxc3 {[%clk 0:00:18.1]} 35.
Qxc3 {[%clk 0:01:02.7]} 35... Bxe4 {[%clk 0:00:18.8]} 36. Rxb6 {[%clk
0:00:57.9]} 36... Qa7 {[%clk 0:00:18]} 37. Bxe4 {[%clk 0:00:37.2]} 37... Qxb6
{[%clk 0:00:16.9]} 38. Bxg6 {[%clk 0:00:37.6]} 38... Nxb3+ {[%clk 0:00:14.6]}
39. Kh1 {[%clk 0:00:35.8]} 39... fxg6 {[%clk 0:00:15]} 40. Bg1 {[%clk
0:00:30.7]} 40... Qb4 {[%clk 0:00:15.3]} 41. Qe5 {[%clk 0:00:30.6]} 41... Qxc4
{[%clk 0:00:15.6]} 42. Nxh4 {[%clk 0:00:28.8]} 42... Qd5 {[%clk 0:00:15.2]} 43.
Qe3 {[%clk 0:00:22.4]} 43... Kh7 {[%clk 0:00:13.5]} 44. Nf3 {[%clk 0:00:22.4]}
44... Nc5 {[%clk 0:00:08.8]} 45. Ne5 {[%clk 0:00:20.7]} 45... Ne4 {[%clk
0:00:07.9]} 46. Kh2 {[%clk 0:00:19.6]} 46... Nf6 {[%clk 0:00:07.4]} 47. Qg3
{[%clk 0:00:18.9]} 47... Kg8 {[%clk 0:00:07.1]} 48. Qxg6 {[%clk 0:00:18.9]}
48... Rc7 {[%clk 0:00:07.8]} 49. Bf2 {[%clk 0:00:18.3]} 49... Qd2 {[%clk
0:00:07.8]} 50. Bg3 {[%clk 0:00:18]} 50... Qd1 {[%clk 0:00:07.4]} 51. Nf3 {[%clk
0:00:16.7]} 51... Rc1 {[%clk 0:00:05.2]} 52. Bf2 {[%clk 0:00:15.2]} 52... Qxa4
{[%clk 0:00:05.1]} 53. Ne5 {[%clk 0:00:13.3]} 53... Qe8 {[%clk 0:00:04.7]} 54.
Qg3 {[%clk 0:00:13.1]} 54... a4 {[%clk 0:00:04.7]} 55. Qe3 {[%clk 0:00:12.9]}
55... Rc2 {[%clk 0:00:05]} 56. Be1 {[%clk 0:00:12.7]} 56... Nd5 {[%clk
0:00:05.4]} 57. Qd4 {[%clk 0:00:12.5]} 57... Rc8 {[%clk 0:00:05.4]} 58. Nf3
{[%clk 0:00:11.2]} 58... Qf8 {[%clk 0:00:05.6]} 59. Bd2 {[%clk 0:00:10.5]} 59...
a3 {[%clk 0:00:05.4]} 60. Ng5 {[%clk 0:00:10.4]} 60... Qe8 {[%clk 0:00:05.3]}
61. f5 {[%clk 0:00:10.1]} 61... Nf6 {[%clk 0:00:04.3]} 62. Nxe6 {[%clk
0:00:09.4]} 62... a2 {[%clk 0:00:04.8]} 63. Bc3 {[%clk 0:00:09.8]} 63... Qf7
{[%clk 0:00:03.7]} 64. Ba1 {[%clk 0:00:09.7]} 64... Qd7 {[%clk 0:00:03]} 65. Qe5
{[%clk 0:00:09.1]} 65... Ra8 {[%clk 0:00:02.2]} 66. Qb2 {[%clk 0:00:07.9]} 66...
Qd6+ {[%clk 0:00:02.2]} 67. Kh1 {[%clk 0:00:08]} 67... Qd1+ {[%clk 0:00:02.5]}
68. Kh2 {[%clk 0:00:08.3]} 68... Qd6+ {[%clk 0:00:03.4]} 69. Kg1 {[%clk
0:00:08.7]} 69... Qd7 {[%clk 0:00:02.2]} 70. Kh2 {[%clk 0:00:08]} 70... Qd6+
{[%clk 0:00:02.4]} 1/2-1/2